fUSD/lending_fUSD_20240819
["ID","MTS","AMOUNT","RATE_DAILY","PERIOD"]
[335257476,1724047849711,-990.16,0.00010998,2]
[335257477,1724047849721,-990.16,0.00010998,2]
[335257478,1724047849730,-500.0,0.00010998,2]
[335257479,1724047849739,-990.16,0.00010998,2]
[335257480,1724047849749,-500.0,0.00010998,2]
[335257481,1724047849759,-482.65,0.00010998,2]
[335257482,1724047849769,-990.16,0.00010998,2]
[335257483,1724047849780,-990.16,0.00010998,2]
[335257484,1724047849790,-990.16,0.00010998,2]
[335257485,1724047849801,-990.16,0.00010998,2]
[335257486,1724047849810,-990.16,0.00010998,2]
[335257487,1724047849820,-990.16,0.00010998,2]
[335257488,1724047849831,-990.16,0.00010998,2]
[335257489,1724047849840,-990.22,0.00010998,2]
[335257490,1724047849850,-2418.91,0.00010998,2]
[335257491,1724047849861,-2418.91,0.00010998,2]
[335257492,1724047849872,-2418.91,0.00010998,2]
[335257493,1724047849882,-2418.91,0.00010998,2]
[335257494,1724047849892,-2418.91,0.00010998,2]
[335257495,1724047849902,-2418.91,0.00010998,2]
[335257496,1724047849912,-2418.91,0.00010998,2]
[335257497,1724047849923,-2418.91,0.00010998,2]
[335257498,1724047849933,-2418.91,0.00010998,2]
[335257499,1724047849943,-2418.91,0.00010998,2]
[335257500,1724047849953,-2418.91,0.00010998,2]
[335257501,1724047849962,-607.02,0.00010998,2]
[335257502,1724047849972,-2418.91,0.00010998,2]
[335257503,1724047849983,-607.02,0.00010998,2]
[335257504,1724047849992,-2418.91,0.00010998,2]
[335257505,1724047850002,-607.02,0.00010998,2]
[335257506,1724047850011,-2418.91,0.00010998,2]
[335257507,1724047850021,-607.02,0.00010998,2]
[335257508,1724047850031,-2418.91,0.00010998,2]
[335257509,1724047850042,-607.02,0.00010998,2]
[335257510,1724047850052,-2418.91,0.00010998,2]
[335257511,1724047850062,-607.02,0.00010998,2]
[335257512,1724047850072,-2418.94,0.00010998,2]
[335257513,1724047850083,-607.02,0.00010998,2]
[335257514,1724047850093,-607.02,0.00010998,2]
[335257515,1724047850103,-607.02,0.00010998,2]
[335257516,1724047850112,-607.02,0.00010998,2]
[335257517,1724047850121,-607.02,0.00010998,2]
[335257518,1724047850131,-607.02,0.00010998,2]
[335257519,1724047850140,-607.02,0.00010998,2]
[335257520,1724047850150,-607.02,0.00010998,2]
[335257521,1724047850159,-607.02,0.00010998,2]
[335257522,1724047850168,-607.02,0.00010998,2]
[335257523,1724047850178,-607.08,0.00010998,2]
[335257524,1724047850187,-813.94,0.00010998,2]
[335257525,1724047850196,-813.94,0.00010998,2]
[335257526,1724047850205,-813.94,0.00010998,2]
[335257527,1724047850214,-813.94,0.00010998,2]
[335257528,1724047850223,-813.94,0.00010998,2]
[335257529,1724047850232,-813.94,0.00010998,2]
[335257530,1724047850242,-813.94,0.00010998,2]
[335257531,1724047850251,-813.94,0.00010998,2]
[335257532,1724047850260,-813.94,0.00010998,2]
[335257533,1724047850269,-813.94,0.00010998,2]
[335257534,1724047850278,-813.94,0.00010998,2]
[335257535,1724047850287,-525.28,0.00010998,2]
[335257536,1724047850297,-525.28,0.00010998,2]
[335257537,1724047850306,-813.94,0.00010998,2]
[335257538,1724047850315,-525.28,0.00010998,2]
[335257539,1724047850326,-813.94,0.00010998,2]
[335257540,1724047850336,-525.28,0.00010998,2]
[335257541,1724047850346,-813.94,0.00010998,2]
[335257542,1724047850355,-525.28,0.00010998,2]
[335257543,1724047850365,-813.94,0.00010998,2]
[335257544,1724047850374,-525.28,0.00010998,2]
[335257545,1724047850383,-813.94,0.00010998,2]
[335257546,1724047850392,-525.28,0.00010998,2]
[335257547,1724047850401,-814.06,0.00010998,2]
[335257548,1724047850411,-525.28,0.00010998,2]
[335257549,1724047850421,-525.28,0.00010998,2]
[335257550,1724047850431,-525.28,0.00010998,2]
[335257551,1724047850440,-525.28,0.00010998,2]
[335257552,1724047850449,-525.28,0.00010998,2]
[335257553,1724047850458,-525.28,0.00010998,2]
[335257554,1724047850467,-525.28,0.00010998,2]
[335257555,1724047850476,-525.28,0.00010998,2]
[335257556,1724047850485,-525.28,0.00010998,2]
[335257557,1724047850494,-525.34,0.00010998,2]
[335257558,1724047850504,-856.82,0.00010998,2]
[335257559,1724047850513,-856.82,0.00010998,2]
[335257560,1724047850523,-856.82,0.00010998,2]
[335257561,1724047850532,-856.82,0.00010998,2]
[335257562,1724047850541,-856.82,0.00010998,2]
[335257563,1724047850549,-500.0,0.00010998,2]
[335257564,1724047850559,-856.82,0.00010998,2]
[335257565,1724047850568,-500.0,0.00010998,2]
[335257566,1724047850578,-856.82,0.00010998,2]
[335257567,1724047850587,-500.0,0.00010998,2]
[335257568,1724047850598,-856.82,0.00010998,2]
[335257569,1724047850609,-500.0,0.00010998,2]
[335257570,1724047850618,-856.82,0.00010998,2]
[335257571,1724047850626,-500.0,0.00010998,2]
[335257572,1724047850636,-856.82,0.00010998,2]
[335257573,1724047850646,-500.0,0.00010998,2]
[335257574,1724047850654,-856.82,0.00010998,2]
[335257575,1724047850663,-500.0,0.00010998,2]
[335257576,1724047850673,-856.82,0.00010998,2]
[335257577,1724047850683,-500.0,0.00010998,2]
[335257578,1724047850693,-856.82,0.00010998,2]
[335257579,1724047850702,-500.0,0.00010998,2]
[335257580,1724047850711,-500.0,0.00010998,2]
[335257581,1724047850720,-856.82,0.00010998,2]
[335257582,1724047850729,-500.0,0.00010998,2]
[335257583,1724047850738,-856.82,0.00010998,2]
[335257584,1724047850747,-856.82,0.00010998,2]
[335257585,1724047850757,-500.0,0.00010998,2]
[335257586,1724047850766,-857.03,0.00010998,2]
[335257587,1724047850775,-571.06,0.00010998,2]
[335257588,1724047850784,-952.78,0.00010998,2]
[335257589,1724047850795,-952.78,0.00010998,2]
[335257590,1724047850803,-952.78,0.00010998,2]
[335257591,1724047850812,-952.78,0.00010998,2]
[335257592,1724047850822,-952.78,0.00010998,2]
[335257593,1724047850836,-952.78,0.00010998,2]
[335257594,1724047850845,-952.78,0.00010998,2]
[335257595,1724047850854,-952.78,0.00010998,2]
[335257596,1724047850863,-952.78,0.00010998,2]
[335257597,1724047850872,-952.78,0.00010998,2]
[335257598,1724047850881,-952.78,0.00010998,2]
[335257599,1724047850890,-952.78,0.00010998,2]
[335257600,1724047850899,-952.78,0.00010998,2]
[335257601,1724047850908,-976.39,0.00010998,2]
[335257602,1724047850917,-952.78,0.00010998,2]
[335257603,1724047850926,-976.39,0.00010998,2]
[335257604,1724047850935,-952.78,0.00010998,2]
[335257605,1724047850944,-976.39,0.00010998,2]
[335257606,1724047850953,-952.78,0.00010998,2]
[335257607,1724047850962,-976.39,0.00010998,2]
[335257608,1724047850971,-952.93,0.00010998,2]
[335257609,1724047850980,-976.39,0.00010998,2]
[335257610,1724047850989,-976.39,0.00010998,2]
[335257611,1724047850998,-976.39,0.00010998,2]
[335257612,1724047851007,-976.39,0.00010998,2]
[335257613,1724047851017,-976.39,0.00010998,2]
[335257614,1724047851026,-976.39,0.00010998,2]
[335257615,1724047851035,-976.39,0.00010998,2]
[335257616,1724047851044,-976.39,0.00010998,2]
[335257617,1724047851053,-976.39,0.00010998,2]
[335257618,1724047851062,-976.39,0.00010998,2]
[335257619,1724047851071,-976.39,0.00010998,2]
[335257620,1724047851082,-613.13,0.00010998,2]
[335257621,1724047851091,-976.39,0.00010998,2]
[335257622,1724047851099,-613.13,0.00010998,2]
[335257623,1724047851109,-976.6,0.00010998,2]
[335257624,1724047851118,-613.13,0.00010998,2]
[335257625,1724047851127,-613.13,0.00010998,2]
[335257626,1724047851137,-613.13,0.00010998,2]
[335257627,1724047851146,-613.13,0.00010998,2]
[335257628,1724047851156,-613.13,0.00010998,2]
[335257629,1724047851165,-613.13,0.00010998,2]
[335257630,1724047851175,-613.13,0.00010998,2]
[335257631,1724047851185,-613.13,0.00010998,2]
[335257632,1724047851194,-613.13,0.00010998,2]
[335257633,1724047851204,-613.13,0.00010998,2]
[335257634,1724047851213,-613.13,0.00010998,2]
[335257635,1724047851223,-613.13,0.00010998,2]
[335257636,1724047851232,-613.13,0.00010998,2]
[335257637,1724047851242,-613.13,0.00010998,2]
[335257638,1724047851252,-613.19,0.00010998,2]
[335257639,1724047851261,-1325.62,0.00010998,2]
[335257640,1724047851270,-1325.62,0.00010998,2]
[335257641,1724047851279,-1325.62,0.00010998,2]
[335257642,1724047851288,-1325.62,0.00010998,2]
[335257643,1724047851297,-1325.62,0.00010998,2]
[335257644,1724047851306,-1325.62,0.00010998,2]
[335257645,1724047851315,-1325.62,0.00010998,2]
[335257646,1724047851324,-1325.62,0.00010998,2]
[335257647,1724047851333,-1325.62,0.00010998,2]
[335257648,1724047851342,-1325.62,0.00010998,2]
[335257649,1724047851351,-1325.62,0.00010998,2]
[335257650,1724047851359,-1325.62,0.00010998,2]
[335257651,1724047851368,-1325.62,0.00010998,2]
[335257652,1724047851378,-1325.62,0.00010998,2]
[335257653,1724047851387,-680.96,0.00010998,2]
[335257654,1724047851396,-1325.62,0.00010998,2]
[335257655,1724047851406,-680.96,0.00010998,2]
[335257656,1724047851414,-1325.62,0.00010998,2]
[335257657,1724047851424,-1325.77,0.00010998,2]
[335257658,1724047851433,-680.96,0.00010998,2]
[335257659,1724047851441,-680.96,0.00010998,2]
[335257660,1724047851450,-680.96,0.00010998,2]
[335257661,1724047851460,-680.96,0.00010998,2]
[335257662,1724047851469,-680.96,0.00010998,2]
[335257663,1724047851478,-680.96,0.00010998,2]
[335257664,1724047851487,-680.96,0.00010998,2]
[335257665,1724047851497,-680.96,0.00010998,2]
[335257666,1724047851506,-680.96,0.00010998,2]
[335257667,1724047851515,-680.96,0.00010998,2]
[335257668,1724047851524,-680.96,0.00010998,2]
[335257669,1724047851533,-680.96,0.00010998,2]
[335257670,1724047851542,-680.96,0.00010998,2]
[335257671,1724047851551,-680.96,0.00010998,2]
[335257672,1724047851560,-681.14,0.00010998,2]
[335257673,1724047851570,-752.39,0.00010998,2]
[335257674,1724047851581,-752.39,0.00010998,2]
[335257675,1724047851590,-752.39,0.00010998,2]
[335257676,1724047851601,-752.39,0.00010998,2]
[335257677,1724047851610,-752.39,0.00010998,2]
[335257678,1724047851620,-752.39,0.00010998,2]
[335257679,1724047851629,-752.39,0.00010998,2]
[335257680,1724047851639,-752.39,0.00010998,2]
[335257681,1724047851649,-752.39,0.00010998,2]
[335257682,1724047851658,-752.39,0.00010998,2]
[335257683,1724047851667,-752.39,0.00010998,2]
[335257684,1724047851677,-752.39,0.00010998,2]
[335257685,1724047851686,-752.39,0.00010998,2]
[335257686,1724047851696,-752.39,0.00010998,2]
[335257687,1724047851704,-752.39,0.00010998,2]
[335257688,1724047851713,-752.39,0.00010998,2]
[335257689,1724047851723,-752.54,0.00010998,2]
[335257690,1724047851731,-864.96,0.00010998,2]
[335257691,1724047851741,-864.96,0.00010998,2]
[335257692,1724047851750,-864.96,0.00010998,2]
[335257693,1724047851759,-864.96,0.00010998,2]
[335257694,1724047851769,-864.96,0.00010998,2]
[335257695,1724047851779,-864.96,0.00010998,2]
[335257696,1724047851788,-864.96,0.00010998,2]
[335257697,1724047851797,-864.96,0.00010998,2]
[335257698,1724047851807,-864.96,0.00010998,2]
[335257699,1724047851816,-864.96,0.00010998,2]
[335257700,1724047851826,-864.96,0.00010998,2]
[335257701,1724047851835,-864.96,0.00010998,2]
[335257702,1724047851844,-864.96,0.00010998,2]
[335257703,1724047851854,-864.96,0.00010998,2]
[335257704,1724047851863,-864.96,0.00010998,2]
[335257705,1724047851873,-864.96,0.00010998,2]
[335257706,1724047851882,-865.17,0.00010998,2]
[335257707,1724047851891,-2598.78,0.00010998,2]
[335257708,1724047851900,-2598.78,0.00010998,2]
[335257709,1724047851909,-2598.78,0.00010998,2]
[335257710,1724047851919,-2598.78,0.00010998,2]
[335257711,1724047851927,-2598.78,0.00010998,2]
[335257712,1724047851937,-2598.78,0.00010998,2]
[335257713,1724047851947,-2598.78,0.00010998,2]
[335257714,1724047851956,-2598.78,0.00010998,2]
[335257715,1724047851965,-2598.78,0.00010998,2]
[335257716,1724047851974,-2598.78,0.00010998,2]
[335257717,1724047851983,-2598.78,0.00010998,2]
[335257718,1724047851991,-2598.78,0.00010998,2]
[335257719,1724047852000,-2598.78,0.00010998,2]
[335257720,1724047852009,-2598.78,0.00010998,2]
[335257721,1724047852018,-2598.78,0.00010998,2]
[335257722,1724047852027,-2598.78,0.00010998,2]
[335257723,1724047852036,-2598.84654631,0.00010998,2]
[335257724,1724047852045,-1541.34,0.00010998,2]
[335257725,1724047852055,-1541.34,0.00010998,2]
[335257726,1724047852063,-1541.34,0.00010998,2]
[335257727,1724047852072,-1541.34,0.00010998,2]
[335257728,1724047852083,-1541.34,0.00010998,2]
[335257729,1724047852092,-1541.34,0.00010998,2]
[335257730,1724047852101,-1541.34,0.00010998,2]
[335257731,1724047852110,-1541.34,0.00010998,2]
[335257732,1724047852119,-1541.34,0.00010998,2]
[335257733,1724047852128,-1541.34,0.00010998,2]
[335257734,1724047852137,-1541.34,0.00010998,2]
[335257735,1724047852146,-1541.34,0.00010998,2]
[335257736,1724047852155,-1541.34,0.00010998,2]
[335257737,1724047852164,-1541.34,0.00010998,2]
[335257738,1724047852173,-1541.34,0.00010998,2]
[335257739,1724047852182,-1541.34,0.00010998,2]
[335257740,1724047852191,-1541.35050719,0.00010998,2]
[335257741,1724047852202,-715.52,0.00010998,2]
[335257742,1724047852211,-715.52,0.00010998,2]
[335257743,1724047852220,-715.52,0.00010998,2]
[335257744,1724047852229,-715.52,0.00010998,2]
[335257745,1724047852238,-1665843.68799043,0.00010999,2]
[335257746,1724047852268,-472.49983338,0.00010999,2]
[335257747,1724047948115,500.93844273,9.53e-05,2]
[335257748,1724048103559,330.81,8.219e-05,2]
[335257749,1724048240749,500.0,9.841e-05,2]
[335257750,1724048249631,500.0,9.078e-05,2]
[335257752,1724048549866,971.49047591,9.308e-05,2]
[335257753,1724048560336,322.06,8.219e-05,2]
[335257754,1724048564391,472.09,9.897e-05,2]
[335257755,1724048574933,155.0,9.899e-05,2]
[335257756,1724048650693,8588.88,9.892e-05,2]
[335257757,1724048714762,3078.71,9.9e-05,2]
[335257759,1724048767825,760.65799889,9.9e-05,2]
[335257761,1724048863835,550.11719186,9.9e-05,2]
[335257781,1724049015912,314.17,8.219e-05,2]
[335257794,1724049032160,-250.0,9.905e-05,2]
[335257795,1724049032170,-50.0,9.948e-05,2]
[335257814,1724049038006,-508.42,9.948e-05,2]
[335257815,1724049038015,-366.27,9.973e-05,2]
[335257816,1724049038025,-170.93,9.977e-05,2]
[335257817,1724049038035,-170.8,9.991e-05,2]
[335257818,1724049038044,-502.40275245,9.999e-05,2]
[335257819,1724049038225,-988.87216718,9.943e-05,2]
[335257820,1724049038238,-1357.41482228,9.999e-05,2]
[335257821,1724049038247,-300.0,9.999e-05,2]
[335257822,1724049038256,-300.0,9.999e-05,2]
[335257823,1724049038265,-787.53052446,9.999e-05,2]
[335257824,1724049038274,-500.0,0.0001,2]
[335257825,1724049038285,-550.0,0.0001,2]
[335257826,1724049038294,-1000.0,0.0001,2]
[335257827,1724049038304,-321.17889271,0.0001,5]
[335257828,1724049038314,-155.14096689,0.00010009,2]
[335257829,1724049038323,-527.91,0.00010115,2]
[335257830,1724049038333,-500.0,0.00010462,2]
[335257831,1724049038342,-314.17,0.00010469,2]
[335257832,1724049038352,-264.66383924,0.00010699,2]
[335257833,1724049038362,-7500.0,0.000108,2]
[335257834,1724049038371,-310.55183727,0.000108,2]
[335257835,1724049038380,-3171.41402855,0.00010852,2]
[335257836,1724049038391,-1382.24889,0.0001089,2]
[335257837,1724049038400,-834.60527473,0.0001089,2]
[335257838,1724049038410,-222.2928,0.00010897,2]
[335257839,1724049038419,-1724.53,0.00010898,2]
[335257840,1724049038428,-2028.83,0.00010898,2]
[335257841,1724049038438,-1229.59,0.00010898,2]
[335257842,1724049038448,-1739.67,0.00010898,2]
[335257843,1724049038457,-4829.91,0.00010898,2]
[335257844,1724049038466,-500.0,0.00010898,2]
[335257846,1724049038476,-501.02738246,0.00010898,2]
[335257847,1724049038486,-1116.37,0.00010898,2]
[335257848,1724049038496,-500.0,0.00010898,2]
[335257849,1724049038505,-1594.38,0.00010898,2]
[335257850,1724049038515,-500.0,0.00010898,2]
[335257851,1724049038524,-500.0,0.00010898,2]
[335257852,1724049038533,-500.0,0.00010898,2]
[335257853,1724049038542,-24111.76,0.00010898,2]
[335257854,1724049038553,-2283.88,0.00010898,2]
[335257855,1724049038562,-500.0,0.00010898,2]
[335257856,1724049038571,-5663.42,0.00010898,2]
[335257857,1724049038580,-1132.22,0.00010898,2]
[335257858,1724049038590,-500.0,0.00010898,2]
[335257859,1724049038599,-1932.55,0.00010898,2]
[335257860,1724049038608,-738.91,0.00010898,2]
[335257861,1724049038617,-625.05,0.00010898,2]
[335257862,1724049038626,-500.0,0.00010899,2]
[335257863,1724049038635,-500.0,0.00010899,2]
[335257864,1724049038644,-500.0,0.00010899,2]
[335257865,1724049038654,-500.0,0.00010899,2]
[335257866,1724049038663,-500.0,0.00010899,2]
[335257867,1724049038672,-500.0,0.00010899,2]
[335257868,1724049038681,-500.0,0.00010899,2]
[335257869,1724049038690,-500.0,0.00010899,2]
[335257870,1724049038700,-500.0,0.00010899,2]
[335257871,1724049038709,-500.0,0.00010899,2]
[335257872,1724049038718,-1842.59,0.00010899,2]
[335257873,1724049038727,-1842.59,0.00010899,2]
[335257874,1724049038736,-1842.59,0.00010899,2]
[335257875,1724049038746,-1842.59,0.00010899,2]
[335257876,1724049038755,-420.41071988,0.00010899,2]
[335257877,1724049038764,-500.0,0.00010899,2]
[335257878,1724049038774,-512.00371122,0.00010899,2]
[335257879,1724049038783,-497.36179724,0.00010899,2]
[335257880,1724049038792,-2821.23,0.00010899,2]
[335257881,1724049038801,-2821.23,0.00010899,2]
[335257882,1724049038811,-2821.23,0.00010899,2]
[335257883,1724049038820,-2821.23,0.00010899,2]
[335257884,1724049038829,-2821.23,0.00010899,2]
[335257885,1724049038838,-500.0,0.00010899,2]
[335257886,1724049038847,-325.21916759,0.00010899,2]
[335257887,1724049038857,-513.96944017,0.00010899,2]
[335257888,1724049038866,-1724.53,0.00010899,2]
[335257889,1724049038875,-1724.53,0.00010899,2]
[335257890,1724049038884,-1724.53,0.00010899,2]
[335257891,1724049038894,-1724.53,0.00010899,2]
[335257892,1724049038903,-2028.83,0.00010899,2]
[335257893,1724049038913,-2028.83,0.00010899,2]
[335257894,1724049038922,-2028.83,0.00010899,2]
[335257895,1724049038930,-2028.83,0.00010899,2]
[335257896,1724049038939,-500.0,0.00010899,2]
[335257897,1724049038949,-480.87704473,0.00010899,2]
[335257898,1724049038958,-1229.59,0.00010899,2]
[335257899,1724049038967,-1229.59,0.00010899,2]
[335257900,1724049038976,-1229.59,0.00010899,2]
[335257901,1724049038985,-1229.59,0.00010899,2]
[335257902,1724049038994,-500.0,0.00010899,2]
[335257903,1724049039003,-500.0,0.00010899,2]
[335257904,1724049039012,-500.0,0.00010899,2]
[335257905,1724049039022,-500.0,0.00010899,2]
[335257906,1724049039031,-500.0,0.00010899,2]
[335257907,1724049039040,-1739.67,0.00010899,2]
[335257908,1724049039049,-1739.67,0.00010899,2]
[335257909,1724049039058,-1739.67,0.00010899,2]
[335257910,1724049039068,-1739.67,0.00010899,2]
[335257911,1724049039077,-500.0,0.00010899,2]
[335257912,1724049039086,-4829.91,0.00010899,2]
[335257913,1724049039095,-4829.91,0.00010899,2]
[335257914,1724049039104,-4829.91,0.00010899,2]
[335257915,1724049039113,-4829.91,0.00010899,2]
[335257916,1724049039122,-500.0,0.00010899,2]
[335257917,1724049039131,-500.0,0.00010899,2]
[335257918,1724049039141,-197.21827254,0.00010899,2]
[335257919,1724049039150,-1116.37,0.00010899,2]
[335257920,1724049039160,-1116.37,0.00010899,2]
[335257921,1724049039169,-1116.37,0.00010899,2]
[335257922,1724049039178,-1116.37,0.00010899,2]
[335257923,1724049039188,-500.0,0.00010899,2]
[335257924,1724049039198,-500.0,0.00010899,2]
[335257925,1724049039207,-1594.38,0.00010899,2]
[335257926,1724049039217,-500.0,0.00010899,2]
[335257927,1724049039226,-1594.38,0.00010899,2]
[335257928,1724049039237,-1594.38,0.00010899,2]
[335257929,1724049039245,-500.0,0.00010899,2]
[335257930,1724049039255,-1594.38,0.00010899,2]
[335257931,1724049039264,-500.0,0.00010899,2]
[335257932,1724049039274,-500.0,0.00010899,2]
[335257933,1724049039283,-500.0,0.00010899,2]
[335257934,1724049039292,-500.0,0.00010899,2]
[335257935,1724049039301,-500.0,0.00010899,2]
[335257936,1724049039312,-500.0,0.00010899,2]
[335257937,1724049039322,-500.0,0.00010899,2]
[335257938,1724049039331,-500.0,0.00010899,2]
[335257939,1724049039341,-24111.76,0.00010899,2]
[335257940,1724049039351,-24111.76,0.00010899,2]
[335257941,1724049039360,-24111.76,0.00010899,2]
[335257942,1724049039370,-24111.76,0.00010899,2]
[335257943,1724049039379,-2283.88,0.00010899,2]
[335257944,1724049039390,-2283.88,0.00010899,2]
[335257945,1724049039399,-2283.88,0.00010899,2]
[335257946,1724049039409,-2283.88,0.00010899,2]
[335257947,1724049039418,-500.0,0.00010899,2]
[335257948,1724049039427,-500.0,0.00010899,2]
[335257949,1724049039437,-500.0,0.00010899,2]
[335257950,1724049039446,-347.86651899,0.00010899,2]
[335257951,1724049039456,-500.0,0.00010899,2]
[335257952,1724049039465,-5663.42,0.00010899,2]
[335257953,1724049039475,-5663.42,0.00010899,2]
[335257954,1724049039485,-5663.42,0.00010899,2]
[335257955,1724049039494,-5663.42,0.00010899,2]
[335257956,1724049039504,-1132.22,0.00010899,2]
[335257957,1724049039513,-1132.22,0.00010899,2]
[335257958,1724049039523,-1132.22,0.00010899,2]
[335257959,1724049039532,-1132.22,0.00010899,2]
[335257960,1724049039541,-500.0,0.00010899,2]
[335257961,1724049039550,-500.0,0.00010899,2]
[335257962,1724049039560,-500.0,0.00010899,2]
[335257963,1724049039570,-500.0,0.00010899,2]
[335257964,1724049039591,-512.93904589,0.00010899,2]
[335257965,1724049039601,-1932.55,0.00010899,2]
[335257966,1724049039611,-1932.55,0.00010899,2]
[335257967,1724049039621,-738.91,0.00010899,2]
[335257968,1724049039630,-1932.55,0.00010899,2]
[335257969,1724049039643,-738.91,0.00010899,2]
[335257970,1724049039653,-1932.55,0.00010899,2]
[335257971,1724049039664,-738.91,0.00010899,2]
[335257972,1724049039675,-738.91,0.00010899,2]
[335257973,1724049039685,-625.05,0.00010899,2]
[335257974,1724049039695,-625.05,0.00010899,2]
[335257975,1724049039706,-625.05,0.00010899,2]
[335257976,1724049039716,-625.05,0.00010899,2]
[335257977,1724049039728,-193778.65966473,0.000109,2]
[335257978,1724049039744,-870.0340065,0.000109,2]
[335257979,1724049039756,-811.62297531,0.000109,2]
[335257981,1724049040180,-1247.19195163,0.000109,2]
[335257982,1724049040192,-3884.44144592,0.000109,2]
[335257983,1724049040204,-547.52749393,0.000109,2]
[335257984,1724049040519,-7271.03132823,0.000109,2]
[335257985,1724049040530,-730.07124766,0.000109,2]
[335257986,1724049040542,-731.17635156,0.000109,2]
[335257987,1724049040552,-395.48039178,0.000109,2]
[335257988,1724049040563,-877.83,0.000109,2]
[335257989,1724049040574,-7429.85952086,0.000109,2]
[335257990,1724049040586,-574.03358918,0.000109,2]
[335257991,1724049040597,-1489.433276,0.000109,2]
[335257992,1724049040629,-717.39688631,0.000109,2]
[335258036,1724049046091,-624.39322026,0.00010899,2]
[335258037,1724049046100,-5022.94806286,0.000109,2]
[335258038,1724049046112,-6722.5665,0.000109,2]
[335258039,1724049046177,-347.72579691,0.000109,2]
[335258041,1724049136507,500.0,9.061e-05,2]
[335258043,1724049338459,649.92257342,9.899e-05,2]
[335258044,1724049365281,207.55661407,9.899e-05,2]
[335258045,1724049395924,-159.99189317,0.00011,10]
[335258046,1724049525202,299.12,8.219e-05,2]
[335258047,1724049731092,6687.07263432,0.00017,60]
[335258048,1724049751399,500.56285359,8.762e-05,2]
[335258049,1724049860052,250.0,9.774e-05,2]
[335258050,1724049874805,5403.79429818,9.899e-05,2]
[335258051,1724049980921,601.03638076,9.899e-05,2]
[335258052,1724049996305,163.79562125,9.899e-05,2]
[335258053,1724050002190,155.08359118,9.899e-05,2]
[335258054,1724050035726,500.0,9.592e-05,2]
[335258057,1724050062206,291.92,8.219e-05,2]
[335258058,1724050085181,414.92,9.78e-05,2]
[335258059,1724050092512,155.0,9.899e-05,2]
[335258060,1724050194839,-687.47768044,9.91e-05,2]
[335258061,1724050194874,-440.37857631,9.91e-05,2]
[335258062,1724050194904,-170.8,9.913e-05,2]
[335258064,1724050194934,-2570.1312295,9.934e-05,2]
[335258066,1724050194981,-3003.72424532,9.934e-05,2]
[335258069,1724050232198,-103.94452518,9.934e-05,2]
[335258070,1724050232208,-285.06,0.0001,2]
[335258071,1724050232218,-500.0,0.0001,2]
[335258072,1724050232227,-86.68024341,0.0001,2]
[335258073,1724050232331,-463.31975659,0.0001,2]
[335258074,1724050232341,-300.0,0.00010022,2]
[335258075,1724050232350,-2995.20886766,0.00010023,2]
[335258084,1724050232536,-918.87231146,0.00010023,2]
[335258086,1724050232548,-419.17924755,0.00010023,2]
[335258113,1724050238359,-811.50522334,0.00010023,2]
[335258114,1724050240436,-641.30813083,0.00010023,2]
[335258115,1724050240659,-2789.54230051,0.00010023,2]